Cogmind - Beta 13 @@@ ROGUE MODE // 2024.04.11 @ 03:30:12 Player: Millea Result: Destroyed by G-47 Trooper with Particle Gun Performance ------------- Evolutions (2) 1000 Regions Visited (6) 1200 Robots Destroyed (126) 630 Value Destroyed (4171) 4171 Prototype IDs (6) 120 Alien Tech Used (0) 0 Bonus (2091) 2091 TOTAL SCORE: 9212 Bonus ------- High Alert Combat Kills 832 Follower Combat Kills 59 Entered Garrisons 200 Used RIF Installer 1000 Cogmind --------- Core Integrity 0/550 Matter 75/300 Energy 150/150 System Corruption 1% Temperature Warning (318) Movement Treading (160) Location -8/Materials Parts ------- > --- POWER (1) -------- Micro Nuclear Core > --- PROPULSION (2) --- Light Treads Light Treads > --- UTILITY (4) ------ Weight Redist. System Improved Signal Interpreter Improved Terrain Scanner Improved Power Shielding > --- WEAPON (4) ------- Gauss Cannon Gauss Cannon > --- INVENTORY (5) ---- Ion Engine Reinforced Ion Engine Cooling System Coolant Injector Tractor Beam Peak State ------------ > --- POWER ------------ Micro Nuclear Core > --- PROPULSION ------- Improved Hover Unit Improved Hover Unit > --- UTILITY ---------- Weight Redist. System Improved Signal Interpreter Improved Terrain Scanner Improved Power Shielding > --- WEAPON ----------- Gauss Cannon Gauss Cannon > --- INVENTORY -------- Ion Engine Reinforced Ion Engine Cooling System Coolant Injector Tractor Beam [Rating: 28] Favorites ----------- Power Heavy Ion Engine Engine Heavy Ion Engine Power Core Micro Nuclear Core Propulsion Light Treads Treads Light Treads Wheel Wheel Hover Unit Improved Hover Unit Utility Medium Storage Unit Device Cooling System Storage Medium Storage Unit Processor Improved Signal Interpreter Hackware Relay Coupler [NC] Protection Light Armor Plating Weapon Improved Assault Rifle Energy Gun Small Laser Ballistic Gun Improved Assault Rifle Ballistic Cannon Gauss Cannon Launcher Grenade Launcher Special Weapon Plasma Cutter Special Melee Weapon Datajack Build | -11 -10 -10 -9 -9 -9 -8 ------- Run | Yrd Mat Min Mat Sto Gar Mat Slots Evolved 4 | . . . 2 . . 2 Power . | . . . . . . . Propulsion . | . . . . . . . Utility 2 | . . . . . . 2 Weapon 2 | . . . 2 . . . Parts Attached 93 | 6 1 3 20 9 20 34 Power 6 | 1 . . 3 . 1 1 Engine 5 | 1 . . 3 . 1 . Core 1 | . . . . . . 1 Reactor . | . . . . . . . Propulsion 28 | 2 . . 6 1 7 12 Treads 24 | 2 . . 6 1 7 8 Leg . | . . . . . . . Wheel 2 | . . . . . . 2 Hover 2 | . . . . . . 2 Flight . | . . . . . . . Utility 20 | 1 1 . 4 1 5 8 Device 5 | . . . 2 . . 3 Storage 4 | 1 . . 2 . . 1 Processor 1 | . . . . . . 1 Hackware 1 | . . . . . . 1 Protection 9 | . 1 . . 1 5 2 Artifact . | . . . . . . . Weapon 39 | 2 . 3 7 7 7 13 Energy Gun 4 | 1 . . 3 . . . Energy Cannon . | . . . . . . . Ballistic Gun 25 | 1 . 3 4 7 5 5 Ballistic Cannon 6 | . . . . . . 6 Launcher 2 | . . . . . 1 1 Special Weapon 1 | . . . . . 1 . Impact Weapon . | . . . . . . . Slashing Weapon . | . . . . . . . Piercing Weapon . | . . . . . . . Special Melee Weapon 1 | . . . . . . 1 Unidentified Prototypes 2 | . . . 2 . . . Parts Lost 18 | . . . . . 3 15 Power 1 | . . . . . . 1 Propulsion 5 | . . . . . . 5 Utility 2 | . . . . . . 2 Weapon 10 | . . . . . 3 7 Highest Loss Streak 13 | . . . . . 1 13 To Critical Strikes . | . . . . . . . Average Slot Usage (%) 96 | . 85 100 99 100 99 86 Engine 10 | . 14 14 11 11 11 6 Treads 20 | . 28 28 22 22 21 13 Device 5 | . . . 10 3 . 10 Storage 10 | . 14 14 11 11 11 6 Hackware 1 | . . . . . . 6 Protection 6 | . . 14 . 7 11 8 Energy Gun 2 | . 14 5 2 . . . Ballistic Gun 34 | . 14 22 41 44 42 21 Ballistic Cannon 1 | . . . . . . 4 Naked Turns 24 | . . . . . . 24 Heaviest Build 46 | 13 16 19 42 38 38 46 Greatest Support 40 | 40 40 40 40 40 40 40 Greatest Overweight (x) 9 | . . . 1 . . 9 Average Overweight (x) . | . . . . . . . Largest Inventory Capacity 15 | 8 8 8 15 10 10 10 Average Capacity 8 | 6 8 8 8 10 10 8 Most Carried 10 | 4 8 8 10 10 10 10 Average Carried 8 | 2 5 8 7 9 9 8 Final Capacity 10 | 8 8 8 10 10 10 5 Final Carried 10 | 4 8 8 10 10 10 5 Class Distribution -------------------- 30% | Gunner 26% | Tank 22% | Scavenger-Tank 20% | Mutant Dominant Class ---------------- Mutant | -10/Materials Mutant | -10/Mines Gunner | -9/Materials Tank | -9/Storage Scavenger-Tank | -9/Garrison Scavenger-Tank | -8/Materials Resources | -11 -10 -10 -9 -9 -9 -8 ----------- Run | Yrd Mat Min Mat Sto Gar Mat Matter Collected 3263 | 208 121 31 959 409 970 565 Remotely . | . . . . . . . Salvage Created 4918 | . 206 51 1619 781 1507 754 Parts 309 | . 20 5 109 43 91 41 Haulers Intercepted 9 | . 1 . 4 3 . 1 Recyclers Shooed 4 | . 1 . 3 . . . Parts Field Recycled . | . . . . . . . Retrieved Matter . | . . . . . . . Parts Self-Destructed . | . . . . . . . Prevented . | . . . . . . . Kills | -11 -10 -10 -9 -9 -9 -8 ------- Run | Yrd Mat Min Mat Sto Gar Mat Combat Hostiles Destroyed 93 | . 7 3 25 13 32 13 Guns 88 | . 7 3 25 13 32 8 Cannons 4 | . . . . . . 4 AOE 1 | . . . . . . 1 Classes Destroyed 12 | . 4 . 5 . 2 1 Worker 7 | . . . 5 . . 2 Hauler 9 | . 1 . 4 3 . 1 Recycler 7 | . . . 5 . . 2 Operator 3 | . . . 2 1 . . Watcher 7 | . 1 . 4 2 . . Swarmer 21 | . 6 3 12 . . . Cutter 4 | . . . . . . 4 Grunt 37 | . 1 . 5 9 15 7 Brawler 1 | . . . . . 1 . Duelist 6 | . . . 1 1 4 . Sentry 22 | . . . 7 3 10 2 Hunter 2 | . . . . . 2 . Best Kill Streak 7 | . 6 3 7 6 6 4 Combat Bots Only 6 | . 6 3 5 6 6 3 Max Kills in Single Turn 3 | . 2 1 3 2 2 1 Gunslinging 2 | . 1 . 2 1 1 . Exploded 1 | . . . . . . 1 Melee . | . . . . . . . Uniques/NPCs Destroyed . | . . . . . . . Combat | -11 -10 -10 -9 -9 -9 -8 -------- Run | Yrd Mat Min Mat Sto Gar Mat Hostile Shots Fired 420 | . 32 20 56 22 124 166 Missed 124 | . 12 10 18 7 31 46 Damage Taken 4820 | . 172 77 454 197 1444 2476 Core 797 | . 18 17 8 11 180 563 Absorbed by Shields . | . . . . . . . Redirected to Shielding 22 | . . . . . . 22 Core Remaining (%) 78 | 100 . 86 . . 50 . Volleys Fired 234 | . 23 14 61 28 65 43 Largest 4 | . 2 1 4 4 4 4 Hottest 153 | . 60 20 153 102 102 142 Shots Fired 764 | . 46 14 240 100 232 132 Gun 734 | . 46 14 240 100 231 103 Cannon 27 | . . . . . . 27 Launcher 3 | . . . . . 1 2 Special . | . . . . . . . Kinetic 714 | . 23 14 216 100 231 130 Thermal 47 | . 23 . 24 . . . Explosive 3 | . . . . . 1 2 Electromagnetic . | . . . . . . . Robot Hit Streak 33 | . 12 3 15 15 33 10 Robot Miss Streak 8 | . 4 2 8 2 3 5 Penetration Max . | . . . . . . . Secondary Targets 25 | . 1 . 4 4 15 1 Max Gunslinging Chain 2 | . 1 . 2 1 2 1 Shots Hit Robots 446 | . 33 8 138 59 137 71 Core Hits 198 | . 14 3 64 25 57 35 Critical Kills 2 | . . 1 . . 1 . Critical Parts Destroyed 1 | . . . . 1 . . Critical Strikes 5 | . . 1 2 1 1 . Burn 2 | . . . 2 . . . Destroy 3 | . . 1 . 1 1 . Melee Attacks 2 | . . . . . . 2 Impact . | . . . . . . . Slashing . | . . . . . . . Piercing . | . . . . . . . Sneak Attacks 2 | . . . . . . 2 Combat Hostiles . | . . . . . . . Follow-up Attacks . | . . . . . . . Damage Inflicted 7908 | . 398 108 2264 977 2254 1907 Guns 7063 | . 398 108 2264 977 2254 1062 Cannons 406 | . . . . . . 406 Explosions 427 | . . . . . . 427 Melee . | . . . . . . . Ramming 12 | . . . . . . 12 Kinetic 7059 | . 218 108 2034 977 2254 1468 Thermal 410 | . 180 . 230 . . . Explosive 427 | . . . . . . 427 Electromagnetic . | . . . . . . . Impact . | . . . . . . . Slashing . | . . . . . . . Piercing . | . . . . . . . Highest Corruption 6 | . . . 5 6 6 1 Average Corruption 4 | . . . 5 5 6 1 Corruption Purged . | . . . . . . . Corruption Blocked . | . . . . . . . Effects 96 | . . . 40 11 40 5 Message Errors 19 | . . . 6 4 7 2 Matter Fused 24 | . . . 8 3 11 2 Heat Flow Errors 7 | . . . 3 1 3 . Energy Discharges 17 | . . . 11 . 5 1 Parts Rejected 1 | . . . . 1 . . Parts Fused 2 | . . . 2 . . . Data Loss (minor) 8 | . . . 2 . 6 . Data Loss (major) 5 | . . . 1 1 3 . Misfires 4 | . . . 2 1 1 . Alerts 2 | . . . 1 . 1 . Weapon Failures 7 | . . . 4 . 3 . Overload Shots . | . . . . . . . Overflow Damage 15 | . . . . . . 15 Projectiles 15 | . . . . . . 15 Explosions . | . . . . . . . Melee . | . . . . . . . Knockbacks 5 | . . . . . . 5 Impact 1 | . . . . . . 1 Kinetic 4 | . . . . . . 4 Secondary . | . . . . . . . Self-Inflicted Damage 6 | . . . . . . 6 Shots . | . . . . . . . Rammed 2 | . . . . . . 2 Targets Rammed 2 | . . . . . . 2 Kicked . | . . . . . . . Crushed . | . . . . . . . Highest Temperature 341 | . 36 . 292 217 341 309 Average Temperature 95 | . 25 . 101 86 99 106 Received Heat Transfer 1671 | . 36 . 171 72 474 918 Effects 2 | . . . . . . 2 Interference 2 | . . . . . . 2 Siege Activations . | . . . . . . . Robots Corrupted . | . . . . . . . Combat Hostiles . | . . . . . . . Parts Fried . | . . . . . . . Impact Corruptions . | . . . . . . . Robots Melted . | . . . . . . . Combat Hostiles . | . . . . . . . Parts Melted 3 | . 1 . 2 . . . Heat Transferred 1214 | . 400 . 814 . . . Parts Sabotaged . | . . . . . . . Parts Stolen . | . . . . . . . Parts Stripped . | . . . . . . . Power Chain Reactions . | . . . . . . . Alert | -11 -10 -10 -9 -9 -9 -8 ------- Run | Yrd Mat Min Mat Sto Gar Mat Peak Influence 1414 | . 257 170 520 640 1414 822 Initial 689 | . . 100 66 207 319 689 Average 541 | . 144 144 264 429 951 700 Maximum Alert Level 4 | . 1 . 2 2 4 3 Low Security (%) 24 | 100 49 100 45 . . . Level 1 11 | . 50 . 14 38 3 . Level 2 29 | . . . 39 61 20 33 Level 3 25 | . . . . . 42 66 Level 4 9 | . . . . . 34 . Level 5 . | . . . . . . . High Security . | . . . . . . . Max Security . | . . . . . . . Squads Dispatched 12 | . 1 . 1 3 . 7 Investigation 3 | . . . . 2 . 1 Extermination . | . . . . . . . Reinforcement 8 | . 1 . 1 1 . 5 Assault 1 | . . . . . . 1 Garrison . | . . . . . . . Intercept . | . . . . . . . Searches Triggered . | . . . . . . . Construction Impeded 1 | . . . . . . 1 Haulers Reinforced . | . . . . . . . Active Scanning Responses . | . . . . . . . Cargo Convoy Interrupts . | . . . . . . . Stealth | -11 -10 -10 -9 -9 -9 -8 --------- Run | Yrd Mat Min Mat Sto Gar Mat Distress Signals 6 | . 1 . 2 2 . 1 Communications Jammed . | . . . . . . . Distress Signals . | . . . . . . . Times Spotted 131 | . 12 3 31 16 31 38 Peak Tracking Total 12 | . 4 3 6 4 6 12 Tactical Retreats 7 | . 1 . 1 . . 5 Traps | -11 -10 -10 -9 -9 -9 -8 ------- Run | Yrd Mat Min Mat Sto Gar Mat Traps Triggered 4 | . . . . 1 1 2 Indirectly . | . . . . . . . Trap Hack Attempts . | . . . . . . . Triggered . | . . . . . . . Disarmed . | . . . . . . . Reprogrammed . | . . . . . . . Reused . | . . . . . . . Traps Extracted . | . . . . . . . Installed . | . . . . . . . Triggered . | . . . . . . . Machines | -11 -10 -10 -9 -9 -9 -8 ---------- Run | Yrd Mat Min Mat Sto Gar Mat Machines Disabled 10 | . . . 2 2 4 2 Max in Single Turn 1 | . . . 1 1 1 1 Garrison Relay 4 | . . . . . 4 . Machines Repaired . | . . . . . . . Machines Dismantled . | . . . . . . . Machines Sabotaged . | . . . . . . . Overloaded Fab Kills . | . . . . . . . Hacking | -11 -10 -10 -9 -9 -9 -8 --------- Run | Yrd Mat Min Mat Sto Gar Mat Machines Accessed 18 | . 1 . 6 3 3 5 Terminals 14 | . 1 . 6 2 3 2 Fabricators . | . . . . . . . Repair Stations . | . . . . . . . Recycling Units 2 | . . . . . . 2 Scanalyzers 1 | . . . . . . 1 Garrison Access 1 | . . . . 1 . . Total Hacks 50 | . 4 . 18 9 5 14 Successful 22 | . 3 . 8 3 2 6 Failed 27 | . 1 . 9 6 3 8 Catastrophic 7 | . . . 1 3 1 2 Database Lockouts 1 | . . . 1 . . . Manual 29 | . 4 . 17 3 . 5 Terminals 39 | . 4 . 18 8 5 4 Fabricators . | . . . . . . . Repair Stations . | . . . . . . . Recycling Units 5 | . . . . . . 5 Scanalyzers 5 | . . . . . . 5 Garrison Access 1 | . . . . 1 . . Terminal Hacks 11 | . 3 . 4 2 2 . Robot Analysis 4 | . 3 . 1 . . . Prototype ID Bank 2 | . . . . 2 . . Open Door 1 | . . . . . 1 . Branch Access Points 1 | . . . 1 . . . Emergency Access Points 1 | . . . . . 1 . Surveillance Status 1 | . . . 1 . . . Patrol Status 1 | . . . 1 . . . Fabricator Hacks . | . . . . . . . Repair Station Hacks . | . . . . . . . Recycling Unit Hacks 2 | . . . . . . 2 Retrieve Components 2 | . . . . . . 2 Scanalyzer 4 | . . . . . . 4 Insert Component 2 | . . . . . . 2 Analyze 2 | . . . . . . 2 Garrison Access Hacks 1 | . . . . 1 . . Unlock Access 1 | . . . . 1 . . Unauthorized Hacks 4 | . . . 4 . . . Terminals 4 | . . . 4 . . . Botnet 4 | . . . 4 . . . Fabricators . | . . . . . . . Repair Stations . | . . . . . . . Recycling Units . | . . . . . . . Scanalyzers . | . . . . . . . Garrison Access . | . . . . . . . Data Cores Recovered 1 | . . . 1 . . . Used . | . . . . . . . Hacking Detections 16 | . 1 . 5 2 3 5 Full Trace Events 4 | . . . . 2 1 1 Feedback Events . | . . . . . . . Feedback Blocked . | . . . . . . . Robot Schematics Acquired . | . . . . . . . Robots Built . | . . . . . . . Authchips . | . . . . . . . Time . | . . . . . . . Total Robot Build Rating . | . . . . . . . Part Schematics Acquired 2 | . . . . . . 2 Parts Built . | . . . . . . . Authchips . | . . . . . . . Time . | . . . . . . . Total Part Build Rating . | . . . . . . . Parts Repaired . | . . . . . . . Time . | . . . . . . . Parts Recycled . | . . . . . . . Recycled Matter . | . . . . . . . Retrieved Matter . | . . . . . . . Retrieved Components 10 | . . . . . . 10 Parts Scanalyzed 2 | . . . . . . 2 Part Schematics Acquired 2 | . . . . . . 2 Parts Damaged . | . . . . . . . Bothacking | -11 -10 -10 -9 -9 -9 -8 ------------ Run | Yrd Mat Min Mat Sto Gar Mat Used RIF Installer 2 | . . . . . 2 . Robot Detection 1 | . . . . . 1 . Robots Hacked 2 | . . . . . . 2 Non-combat 2 | . . . . . . 2 Combat . | . . . . . . . Robot Hacks Applied 2 | . . . . . . 2 parse_system 1 | . . . . . . 1 no_distress 1 | . . . . . . 1 Relay Couplers Released 13 | . . . . . 13 . Machine Destruction 13 | . . . . . 13 . Attached 1 | . . . . . . 1 Fabnet Peak Effective % . | . . . . . . . Robots Rewired 2 | . . . . . 2 . Allies Hacked . | . . . . . . . Hacks Repelled . | . . . . . . . Allies | -11 -10 -10 -9 -9 -9 -8 -------- Run | Yrd Mat Min Mat Sto Gar Mat Total Allies 2 | . . . . . 2 . Largest Group 2 | . . . . . 2 2 Highest-Rated Group 40 | . . . . . 40 40 Highest-Rated Ally 20 | . . . . . 20 20 Total Orders . | . . . . . . . Ally Attacks 9 | . . . . . . 9 Total Damage 275 | . . . . . . 275 Kills 4 | . . . . . . 4 Allies Corrupted . | . . . . . . . Allies Melted . | . . . . . . . Intel | -11 -10 -10 -9 -9 -9 -8 ------- Run | Yrd Mat Min Mat Sto Gar Mat Robot Analysis Total 4 | . 3 . 1 . . . Derelict Logs Recovered 1 | . . 1 . . . . Drone Launches . | . . . . . . . Drone Recoveries . | . . . . . . . Exploration | -11 -10 -10 -9 -9 -9 -8 ------------- Run | Yrd Mat Min Mat Sto Gar Mat Turns Passed 5336 | 66 279 392 1512 488 1441 1158 Spaces Moved 2718 | 36 120 225 777 224 727 609 Core 158 | 3 . . . . . 155 Treads 2543 | 33 120 225 777 224 727 437 Legs . | . . . . . . . Wheels 5 | . . . . . . 5 Hover 12 | . . . . . . 12 Flight . | . . . . . . . Fastest Speed 50 | 50 160 160 160 160 160 50 Average Speed 158 | 150 160 160 160 160 160 153 Slowest Speed 500 | 160 160 160 240 160 160 500 Overloaded Moves . | . . . . . . . Propulsion Burnouts . | . . . . . . . Robots Hopped . | . . . . . . . Cave-ins Triggered . | . . . . . . . Exploration Rate (%) 47 | 4 39 67 66 47 66 40 Regions Visited 6 Branch Regions 2 Pre-discovered Areas 2 | . . 2 . . . . Known Exits Taken 2 | . . . 1 1 . . Unknown Exits Taken 3 | 1 1 1 . . . . Scrap Searched . | . . . . . . . Spaces Dug . | . . . . . . . Terrain Destroyed 31 | . . . . 1 4 26 Melee . | . . . . . . . Projectile 12 | . . . . 1 . 11 AOE 19 | . . . . . 4 15 Terrain Rammed . | . . . . . . . Walls Destroyed . | . . . . . . . Machines Disabled . | . . . . . . . Actions | -11 -10 -10 -9 -9 -9 -8 --------- Run | Yrd Mat Min Mat Sto Gar Mat Total 3222 | 45 161 243 895 297 852 729 Wait 73 | . 12 . 13 18 11 19 Move 2713 | 35 119 224 776 224 726 609 Hop . | . . . . . . . Pick Up 31 | 4 5 . 6 6 2 8 Fast Attach 37 | 6 1 1 7 1 4 17 Attach 14 | . . . 2 . 3 9 Detach 1 | . . . 1 . . . Swap 42 | . . 2 11 8 13 8 Drop 54 | . 1 2 18 12 9 12 Fire 234 | . 23 14 61 28 65 43 Melee 2 | . . . . . . 2 Ram 2 | . . . . . . 2 Kick . | . . . . . . . Crush . | . . . . . . . Escape Stasis . | . . . . . . . Rewire 19 | . . . . . 19 . Trap . | . . . . . . . Miscellaneous . | . . . . . . . Route ------- -11/Scrapyard -10/Materials -10/Mines -9/Materials (discovered 4 exits: *Mat x2 / *Min / *Sto) -9/Storage -9/Garrison (discovered 2 exits: *Mat x2) -8/Materials History --------- Turn | Location | Event 12 | -11/Scrapyard | Discovered new exit (range 16) 67 | -11/Scrapyard | Entered Materials 272 | -10/Materials | Discovered new exit (range 11) 315 | -10/Materials | Build established: Mutant 346 | -10/Materials | Entered Mines 353 | -10/Mines | Met a Derelict bent on vengeance 546 | -10/Mines | Learned location of Mines (-9) 579 | -10/Mines | A weapon hastily lodged in a ceiling crevice suddenly fell to the ground 727 | -10/Mines | Discovered new exit (range 8) 728 | -10/Mines | Learned location of Storage (-9) 738 | -10/Mines | Entered Materials 738 | -9/Materials | Evolved 2 slots: Weapon x2 1036 | -9/Materials | Central database locked down 1036 | -9/Materials | Identified exit to Mines 1036 | -9/Materials | Identified exit to Storage 1062 | -9/Materials | Build established: Gunner 1417 | -9/Materials | Discovered new exit (range 4) 2018 | -9/Materials | Discovered new exit (range 15) 2250 | -9/Materials | Entered Storage 2697 | -9/Storage | Build established: Tank 2738 | -9/Storage | Identified exit to Garrison 2738 | -9/Storage | Entered Garrison 2772 | -9/Garrison | Triggered checkpoint 2876 | -9/Garrison | Garrison Relay disabled 2942 | -9/Garrison | Triggered checkpoint 2974 | -9/Garrison | Triggered checkpoint 3012 | -9/Garrison | Triggered checkpoint 3070 | -9/Garrison | Triggered checkpoint 3086 | -9/Garrison | Discovered new exit (range 14) 3235 | -9/Garrison | Installed Relay Interface Framework 3248 | -9/Garrison | Triggered checkpoint 3270 | -9/Garrison | Garrison Relay disabled 3424 | -9/Garrison | Triggered checkpoint 3466 | -9/Garrison | Garrison Relay disabled 3573 | -9/Garrison | Discovered new exit (range 10) 3614 | -9/Garrison | Triggered checkpoint 3687 | -9/Garrison | Garrison Relay disabled 3730 | -9/Garrison | Build established: Scavenger-Tank 3949 | -9/Garrison | Expanded RIF knowledge: Robot Detection 4179 | -9/Garrison | Entered Materials 4179 | -8/Materials | Accompanied by 2 allies 4179 | -8/Materials | Evolved 2 slots: Utility x2 4956 | -8/Materials | Build established: Tank 4979 | -8/Materials | First assault squad dispatched 4981 | -8/Materials | Core integrity fell below 50% 5007 | -8/Materials | Core integrity fell below 20% 5009 | -8/Materials | Released all parts (3) 5040 | -8/Materials | Lost 13 parts (1p5n2u5w) 5273 | -8/Materials | Build established: Mutant 5337 | -8/Materials | Destroyed by G-47 Trooper with Particle Gun Last Messages --------------- 05319_ G-47 Trooper knocked back. 05322_ Slug penetrates U-05 Engineer. 05322_ U-05 Engineer knocked back. 05322_ Pressure Siphon disabled. 05322_ Destroyed Com. Wheel. 05322_ R-06 Scavenger destroyed. 05322_ ALERT: Construction progress impeded, dispatching reinforcements to local area. 05325_ G-47 Trooper destroyed. 05326_ R-06 Scavenger collects Particle Gun. 05328_ G-47 Trooper knocked back. 05328_ G-47 Trooper destroyed. 05329_ R-06 Scavenger collects Surge Thruster. 05332_ R-06 Scavenger collects Imp. Heat Sink. 05334_ Slug penetrates G-47 Trooper. 05334_ G-47 Trooper destroyed. 05334_ Slug penetrates Pressure Siphon. 05336_ R-06 Scavenger collects Lgt. Treads. 05337_ Overheating: System interference. 05337_ Gauss Cannon temporarily disabled. Map ----- +----------------------------------------------------+ | ?????????? ????????????# ????# ########## # | | ?????????? ????????????#####????# #????????# # | | ?????????? ?????????????????????# #????????# # | | ?????????? ?????????????????????# #????????? # | | ????????????????????????????????# #?????????##### | | ???????????????????###########??# #?????????????? | | ???????????????????# """ """ #??# #?????????????? | | ???????????????????# """ """ #??# #?????????????? | | ???????????????????# """ """ #??# #?????????????? | | ???????????????????# ####/##########????? | | ???????????????????# ## # #????? | | ???????????????????# ## # #????? | | ???????????????????# % ## + #????? | | ???????????????????# ! ## # #????? | | ???????????????????#####+###### # #????? | | ???????????????????# #???# ### ###????? | | ???????????????????# #####+######?# #??????? | | ???????????????????# # ####### #??????? | | ???????????????????# # + #??????? | | ????????????????####+## # # #??????? | | ????????????????# ! # # # ##?????? | | ????????????????# "Y" #^ # # #???? | | ????????????????# """ # + # ########???? | | ????????????????# # ######## #??????????? | | ???????????????######## ###????# #########??? | | ???????????????# * # @;;###### + #? | | ???????????????# # [% / ## """ #? | | ??????????????## # =% #?? """ #? | | ??????????????# ! # ! r%==""%" ##? """ #? | | ??????????????## # " =%!%""" # ?? | | ???????????????# """ # "Y*!% %%"" # """ #? | | ???????????????# """ + ""%= + """ #? | | ???????????????# """ # *= # """ #? | | ???????????????# # ] g # ! ?? | | ???????????????# ############ ###########? | | ???????????????# #???# # !!#??????? | | ???????????????# "T" #???# + !!#??????? | | ???????????????# #???# " " # #??????? | | ???????????????########???# "G" # #??????? | | ??????????????????????????# """ ?##### *#??????? | | ??????????????????????????# ?????# **#??????? | | ??????????????????????????#####??????#####??????? | | ????????????????????????????????????????????????? | | ????????????????????????????????????????????????? | | ????????????????????????????????????????????????? | | ????????????????????????????????????????????????? | | ????????????????????????????????????????????????? | | | | | | | +----------------------------------------------------+ Best States ------------- Heat Dissipation 53 Energy Generation 15 Energy Capacity 280 Matter Stores 300 Matter Capacity 300 Sight Range 16 Terrain Scan Density 10 Additional Mass Support 6 Armor Coverage 225 Power Shielding 66 Evasion (%) 50 Recoil Reduction 2 Relay Coupler Types 1 Relay Coupler Value 32 Item Schematics ----------------- Coolant Injector | -8/Materials | Scanalyzed Hvy. Assault Rifle | -8/Materials | Scanalyzed Robot Schematics ------------------ None Fabricated ------------ Nothing Alien Tech Used ----------------- None Achievements -------------- None Challenges ------------ None Game ------ Seed CoolantConcussiveLauncher Manual? 0 Play Time 00:32:55 Cumulative 151.6 hours Start 2024.04.11 @ 02:43:42 End 2024.04.11 @ 03:30:12 Sessions 1 Manual Loads 0 Difficulty Rogue Special Mode None Game No. 137 Rogue 137 Adventurer 0 Explorer 0 Win Type - Total 4 Types 4/0/0/0/0/0/0/0/0 Lore% 65 Gallery% 75 Achievement% 62 Wizard Run 0 Options --------- Layout 2 ASCII 1 Keyboard 0 Movement Mouse Keybinds 0 Fullscreen 2 Font 24/Smallcaps Map View 50x44 Zoom Use 0% Tactical HUD 1 Map Filters NONE Filters NONE Steam 1 RUN: 4aa04d33-8afd-4aad-ba75-871100f7205c